[Event "Romanian Rapid Open 2022"]
[Site "Sebes"]
[Date "2022.12.02"]
[Round "6.22"]
[White "Craciun, Ovidiu"]
[Black "Teodorescu, Razvan"]
[Result "0-1"]
[ECO "B35"]
[WhiteElo "1857"]
[BlackElo "2118"]
[Annotator "TA"]
[PlyCount "61"]
[EventDate "2022.12.02"]
[EventType "rapid"]
[EventCountry "ROU"]
[SourceTitle "playchess.com"]
[Source "ChessBase"]
[SourceQuality "1"]
[TimeControl "600+5"]

{[%evp 13,61,16,31,-120,-128,-126,-83,-79,-80,-93,-40,-40,50,65,143,143,146,136,120,0,205,2,47,-3,-10,-23,62,61,56,0,20,16,25,11,78,-49,-35,-15,22,-240,-283,-346,-332,-554,-534,-702,-675,-1309,-1095,-29998]} 1. e4 {[%emt 0:00:03]} c5 {[%emt 0:00:00]} 2. Nf3 {[%emt 0:00:02]} Nc6 {[%emt 0:00:01]} 3. Nc3 {[%emt 0:00:06]} g6 {[%emt 0:00:06]} 4. d4 {[%emt 0:00:04]} cxd4 {[%emt 0:00:06]} 5. Nxd4 {[%emt 0:00:02]} Bg7 {[%emt 0:00:09]} 6. Be3 {[%emt 0:00:02]} Nf6 {[%emt 0:00:11]} 7. Bc4 {[%emt 0:00:06]} Qa5 {[%emt 0:00:13]} 8. Bb3 $2 {[%emt 0:00:49] B35: Sicilian: Accelerated Dragon with 5 Nc3: main line.} (8. O-O $14 {keeps the upper hand.}) 8... Nxe4 $17 {[%emt 0:00:25]} 9. Qf3 {[%emt 0:02:18]} Nf6 {[%emt 0:00:46][%cal Od7d5]} (9... Nxd4 $2 10. Qxf7+ (10. Qxe4 $2 {loses.} Nxb3 11. cxb3 Bxc3+ 12. bxc3 Qxc3+ 13. Ke2 Qc6 $17) 10... Kd8 11. Qxg7 $18) 10. O-O-O {[%emt 0:00:09] Black is better.} O-O {[%emt 0:00:18]} 11. h3 {[%emt 0:00:35] [#]} a6 $146 {[%emt 0:00:57]} ({Black should try} 11... e6 $17 12. Nxc6 bxc6) ({Predecessor:} 11... Ne5 12. Qe2 d6 13. f4 Nc6 14. g4 Bd7 15. Rhg1 Rac8 16. h4 Nb4 17. a3 Nbd5 18. Nxd5 Nxd5 {1-0 (32) Gora,J (1761)-Adamowicz,M (1862) Sielpia 2009}) 12. g4 {[%emt 0:00:05] Against d5} Nxd4 {[%emt 0:01:08]} (12... e6 $15) 13. Bxd4 $14 {[%emt 0:00:04]} e5 {[%emt 0:00:18]} (13... d6 $14) 14. Be3 $16 {[%emt 0:00:25][%mdl 1024] White has strong compensation.} Rb8 {[%emt 0:00:37]} 15. Ba7 {[%emt 0:00:10] Prevents b5.} Ra8 {[%emt 0:00:03]} 16. Be3 {[%emt 0:00:02]} ({White should play} 16. g5 $16 Ne8 17. Qe3) 16... Qc7 $2 {[%emt 0:01:17]} (16... Rb8 $1 $11 {and Black has nothing to worry.}) 17. Qg3 $2 {[%emt 0:00:06]} ({Better is} 17. g5 $18 Nh5 18. Nd5) 17... d6 {[%emt 0:00:07]} 18. f4 {[%emt 0:00:04]} (18. Bg5 $1 $14) 18... b5 $11 {[%emt 0:00:21]} 19. Rhf1 {[%emt 0:00:52] [#] Black must now prevent fxe5.} Bb7 {[%emt 0:00:09]} (19... b4 $11 20. fxe5 dxe5) 20. fxe5 $14 {[%emt 0:00:14]} dxe5 {[%emt 0:00:04]} 21. Bg5 {[%emt 0:00:04]} (21. Qh4 $14 Ne4 22. Nd5 Bxd5 23. Bxd5) 21... Ne4 {[%emt 0:00:21]} 22. Nxe4 {[%emt 0:00:22]} Bxe4 {[%emt 0:00:01]} 23. Qe3 {[%emt 0:00:16]} Bb7 {[%emt 0:00:27]} (23... Qb7 $1 $11) 24. h4 {[%emt 0:00:08]} (24. Rd2 $16) 24... a5 $1 $36 {[%emt 0:00:23][%cal Ba6a5,Ba5b4,Bb4c3][%mdl 2080] ...a4 is the strong threat. Black has good play.} 25. a3 $1 {[%emt 0:01:24]} Rac8 {[%emt 0:00:05]} 26. c3 $2 {[%emt 0:00:17][%mdl 8192] [#]} (26. Rf2 $1 $11 {and White stays safe.}) 26... b4 $1 $19 {[%emt 0:00:09]} 27. axb4 {[%emt 0:00:38]} axb4 {[%emt 0:00:01]} 28. h5 $2 {[%emt 0:01:24]} (28. c4 {is a better defense.}) 28... bxc3 {[%emt 0:00:20] Black is clearly winning.} 29. hxg6 {[%emt 0:00:02]} hxg6 {[%emt 0:00:38] And now ...c2 would win.} 30. Bf6 {[%emt 0:00:23]} Qa5 {[%emt 0:00:54] ( -> ...Qa1+)} 31. Bc2 {[%emt 0:01:06] Quite a comeback for Black.   Weighted Error Value: White=1.00/Black=0.39} 0-1

[Event "Romanian Rapid Open 2022"]
[Site "Sebes"]
[Date "2022.12.02"]
[Round "6.23"]
[White "Vasilca, Cornel"]
[Black "Ciolacu, Alessia-Mihaela"]
[Result "0-1"]
[ECO "C55"]
[WhiteElo "1520"]
[BlackElo "2097"]
[Annotator "TA"]
[PlyCount "78"]
[EventDate "2022.12.02"]
[EventType "rapid"]
[EventCountry "ROU"]
[SourceTitle "playchess.com"]
[Source "ChessBase"]
[SourceQuality "1"]
[TimeControl "600+5"]

{[%evp 9,78,6,26,17,29,22,21,22,43,18,29,18,54,22,27,10,0,0,29,12,20,38,174,-105,-96,-300,-262,-274,-153,-157,-185,-221,-235,-308,-282,-460,-460,-460,-450,-441,-409,-386,-379,-379,-379,-717,-710,-663,-490,-495,-508,-455,-449,-435,-394,-655,-622,-600,-600,-763,-755,-718,-737,-885,-750,-1324,-1251,-29980,-29980,-29992,-29992]} 1. e4 {[%emt 0:00:05]} e5 {[%emt 0:00:07]} 2. Nf3 {[%emt 0:00:05]} Nc6 {[%emt 0:00:02]} 3. Bc4 {[%emt 0:00:02]} Nf6 {[%emt 0:00:02]} 4. d3 {[%emt 0:00:02]} h6 {[%emt 0:00:02]} 5. a3 {[%emt 0:00:01]} d6 {[%emt 0:00:07]} 6. h3 {[%emt 0:00:06] C55: Two Knights: 4 d3, 4 d4 exd4 5 e5 and Max Lange Attack.} g6 {[%emt 0:00:04]} 7. Be3 {[%emt 0:00:04]} Bg7 {[%emt 0:00:05]} 8. Nc3 {[%emt 0:00:05] [#] Inhibits d5. The position is equal.} Nh5 $146 {[%emt 0:00:40]} ({Predecessor:} 8... a6 9. Qd2 Nd7 10. O-O f5 11. exf5 gxf5 12. Rae1 Nf6 13. d4 e4 14. Nh4 d5 {0-1 (56) Shimanov,A (2581)-Pultinevicius,P (2539) Chess.com INT 2022}) 9. Qd2 {[%emt 0:00:13]} Nd4 {[%emt 0:00:12] Prevents g4.} 10. Bxd4 {[%emt 0:01:13]} exd4 {[%emt 0:00:01]} 11. Ne2 {[%emt 0:00:13]} c5 {[%emt 0:00:12]} 12. g4 {[%emt 0:00:10]} Nf6 {[%emt 0:00:40]} 13. O-O-O {[%emt 0:00:36]} Bd7 {[%emt 0:00:20]} 14. e5 {[%emt 0:00:07]} Nh7 {[%emt 0:01:23]} 15. exd6 {[%emt 0:00:31]} Bc6 {[%emt 0:00:08] [#]} (15... O-O $14) 16. Neg1 $2 {[%emt 0:01:04]} ({Only move:} 16. Nexd4 $1 $18 {[%mdl 512]} cxd4 (16... O-O 17. Nxc6) 17. Rhe1+ Kd7 18. Re7+ Kc8 19. Rxf7) 16... O-O $17 {[%emt 0:00:12] Threatens to win with ...b5.} 17. Rh2 $2 {[%emt 0:01:20]} (17. Qf4 $17) 17... Qxd6 $19 {[%emt 0:00:44]} 18. Rg2 {[%emt 0:01:11]} Qf6 {[%emt 0:00:47]} (18... b5 $19 19. Ba2 c4 20. dxc4 bxc4 21. Bxc4 Rfc8) 19. Rg3 $17 {[%emt 0:00:22]} b5 $36 {[%emt 0:00:22][%mdl 2048] Black is on the roll.} 20. Bb3 {[%emt 0:00:07]} a5 {[%emt 0:00:23][%cal Ba7a5,Ba5a4][%mdl 32]} 21. g5 {[%emt 0:00:13]} hxg5 {[%emt 0:00:06]} 22. Nxg5 $2 {[%emt 0:00:18]} (22. Ba2 {was called for.}) 22... Nxg5 $19 {[%emt 0:00:05]} 23. Rxg5 {[%emt 0:00:06]} Bh6 {[%emt 0:00:18] A strong pair of Bishops.} 24. h4 {[%emt 0:00:02]} a4 {[%emt 0:00:21]} 25. Ba2 {[%emt 0:00:09]} b4 {[%emt 0:00:04]} 26. Nh3 {[%emt 0:00:48]} Bxg5 {[%emt 0:00:30]} 27. hxg5 {[%emt 0:00:05]} (27. Qxg5 Qxg5+ 28. hxg5) 27... Qf5 {[%emt 0:00:05]} 28. Nf4 {[%emt 0:00:18]} Qxg5 {[%emt 0:00:21] aiming for ...Bf3.} 29. Nd5 {[%emt 0:00:24]} Qxd2+ {[%emt 0:00:09]} 30. Kxd2 {[%emt 0:00:04]} Bxd5 {[%emt 0:00:18]} 31. Bxd5 {[%emt 0:00:02][%mdl 4096] Endgame KRR-KRB} Ra6 {[%emt 0:00:21]} 32. axb4 $2 {[%emt 0:00:07]} (32. Re1) 32... cxb4 {[%emt 0:00:02][%cal Bc5b4,Bb4a3,Ba3a2][%mdl 32]} 33. Rg1 {[%emt 0:00:13]} a3 {[%emt 0:00:05]} 34. Bc4 {[%emt 0:00:29]} Rf6 {[%emt 0:00:09]} 35. bxa3 {[%emt 0:00:17]} bxa3 {[%emt 0:00:02]} 36. Rg2 {[%emt 0:00:21]} Kg7 {[%emt 0:00:15]} 37. c3 {[%emt 0:00:12]} Ra8 {[%emt 0:00:11] ( -> ...a2)} 38. Ba2 {[%emt 0:00:13]} Rb6 {[%emt 0:00:05]} 39. Bc4 {[%emt 0:00:22]} a2 {[%emt 0:00:05] Weighted Error Value: White=0.94/Black=0.25 (precise)} 0-1

[Event "Romanian Rapid Open 2022"]
[Site "Sebes"]
[Date "2022.12.02"]
[Round "6.24"]
[White "Cazan, Mircea-Andrei"]
[Black "Tampea, Radu"]
[Result "0-1"]
[ECO "A00"]
[WhiteElo "1898"]
[BlackElo "2110"]
[Annotator "TA"]
[PlyCount "109"]
[EventDate "2022.12.02"]
[EventType "rapid"]
[EventCountry "ROU"]
[SourceTitle "playchess.com"]
[Source "ChessBase"]
[SourceQuality "1"]
[TimeControl "600+5"]

{[%evp 9,109,-14,0,-9,0,-14,15,-13,-4,-31,-37,-41,0,0,14,19,56,-1,17,5,52,40,41,28,42,15,36,34,45,0,-8,0,14,-2,-6,-74,-83,-75,-76,-75,-54,-67,-78,-127,-127,-138,-146,-175,-142,-135,-139,-137,-79,-85,-81,-72,-72,-66,0,0,0,-76,-70,-68,-56,-88,27,20,121,-189,-208,-169,-192,-568,-402,-325,13,22,197,210,226,235,226,208,475,482,568,554,522,406,361,287,628,614,531,458,571,277,265,215,211,209]} 1. g3 {[%emt 0:00:11]} d5 {[%emt 0:00:01]} 2. Bg2 {[%emt 0:00:02]} e5 {[%emt 0:00:01]} 3. d3 {[%emt 0:00:02]} Nc6 {[%emt 0:00:02]} 4. Nd2 {[%emt 0:00:04]} Be6 {[%emt 0:00:01]} 5. c3 {[%emt 0:00:04]} Qd7 {[%emt 0:00:01]} 6. b4 {[%emt 0:00:01][%cal Bb2b4,Bb4b5][%mdl 32] A00: Irregular Openings.} f6 {[%emt 0:00:05] [#]} 7. a4 $146 {[%emt 0:00:01]} ({Predecessor:} 7. Nb3 h5 8. h4 Nh6 9. Nc5 Bxc5 10. bxc5 Ng4 11. Nf3 Qe7 12. d4 e4 13. Nh2 Nxh2 14. Rxh2 {0-1 (60) Shengelia,D (2565)-Moser,E (2433) Vienna 2013}) 7... g5 {[%emt 0:00:11][%cal Bg7g5,Bg5g4][%mdl 32]} 8. b5 {[%emt 0:00:01] The position is equal.} Na5 {[%emt 0:00:16]} 9. Qc2 {[%emt 0:00:25]} (9. h4 $5 {[%cal Rh4g5]}) 9... h5 {[%emt 0:00:02]} 10. h4 {[%emt 0:00:25]} g4 {[%emt 0:00:05]} 11. e3 {[%emt 0:00:44]} Ne7 {[%emt 0:00:12]} 12. Ne2 {[%emt 0:00:09]} Bg7 {[%emt 0:00:01]} 13. Bb2 {[%emt 0:01:11]} (13. Ba3 $14) 13... O-O {[%emt 0:00:51]} 14. c4 {[%emt 0:00:33]} dxc4 {[%emt 0:00:08]} (14... c5 $11) 15. Nxc4 $14 {[%emt 0:00:23]} Nxc4 {[%emt 0:00:11]} 16. dxc4 {[%emt 0:00:03]} Rad8 {[%emt 0:00:54]} 17. O-O {[%emt 0:00:57]} (17. Ba3 {keeps more tension.} c6 18. O-O Qc7 19. bxc6 bxc6 20. Rad1) 17... Qd2 {[%emt 0:00:14] Inhibits Rfd1.} 18. Rac1 {[%emt 0:00:59]} (18. Rfc1 {simplifies} Qxc2 19. Rxc2 b6 20. Nc3) 18... Bf5 {[%emt 0:00:30]} 19. e4 {[%emt 0:00:41]} (19. Qxd2 $14 Rxd2 20. Ba3) 19... Be6 $11 {[%emt 0:00:04]} 20. Ba3 {[%emt 0:00:42] Against c5} Kf7 {[%emt 0:00:13]} 21. Rfe1 {[%emt 0:00:25]} (21. Nc3 {simplifies} Qxc2 22. Rxc2 c6 23. Rb1) 21... Bh6 {[%emt 0:00:13]} (21... Qxc2 {simplifies} 22. Rxc2 Bh6 23. Bf1 Rfe8) 22. Qb1 {[%emt 0:01:31]} (22. Bf1 $11) 22... Qd3 $1 $17 {[%emt 0:03:25]} 23. Rc3 {[%emt 0:00:53] [#]} Qxb1 {[%emt 0:00:07]} 24. Rxb1 {[%emt 0:00:01]} Rd2 {[%emt 0:00:02]} 25. Bf1 {[%emt 0:01:07]} Rfd8 {[%emt 0:00:09]} 26. Bc1 {[%emt 0:00:03] Inhibits f5.} (26. a5 $142) 26... Rd1 {[%emt 0:00:01]} 27. Rb2 {[%emt 0:00:13]} Bxc1 {[%emt 0:00:05] Black has more active pieces.} 28. Nxc1 {[%emt 0:00:09]} R8d4 {[%emt 0:00:44]} 29. Kg2 {[%emt 0:00:12]} Rxe4 {[%emt 0:00:17]} 30. Be2 {[%emt 0:00:03]} Re1 {[%emt 0:00:42]} ({Black should try} 30... Rd8 31. f3 Red4) 31. f3 {[%emt 0:00:19]} Rd4 {[%emt 0:00:22]} 32. Kf2 {[%emt 0:00:02]} Rh1 {[%emt 0:00:03] Threatens to win with ...gxf3.} 33. Kg2 {[%emt 0:00:02]} Re1 {[%emt 0:00:49]} (33... Rh3 $15 34. Nb3 Rd6) 34. Kf2 $1 $11 {[%emt 0:00:00]} Rh1 {[%emt 0:01:53]} (34... Rxe2+ $11 35. Nxe2 Rd1) 35. Kg2 $1 $17 Rh3 $36 {[%emt 0:00:00][%mdl 2048] White is under pressure.} 36. Nb3 {[%emt 0:00:02]} Rd8 {[%emt 0:00:00]} 37. Nc5 {[%emt 0:00:05] [#] Black must now prevent Nxe6.} Bc8 {[%emt 0:00:00]} (37... f5 $1 $17 38. a5 Bc8) 38. Ne4 $11 {[%emt 0:00:17][%mdl 1024] White has compensation.} Rd4 {[%emt 0:00:00]} (38... Nf5 $11 {remains equal.}) 39. Nc5 $2 {[%emt 0:00:08][%mdl 8192]} (39. Nf2 $16 {is necessary to keep the advantage.}) 39... Ng6 $19 {[%emt 0:00:00]} 40. Nb3 {[%emt 0:00:04]} Rd8 {[%emt 0:00:03][%cal Og6h4] And now ...Nxh4+! would win.} 41. Nc5 $2 {[%emt 0:00:01]} (41. Rd2 {is tougher.} Re8 42. c5) 41... f5 {[%emt 0:00:12]} 42. fxg4 {[%emt 0:00:08]} fxg4 {[%emt 0:00:02]} (42... hxg4 $19 43. Kf2 Nxh4) 43. Ne4 $1 $11 {[%emt 0:00:06]} b6 $2 {[%emt 0:00:14]} (43... Nf4+ $1 $11 44. gxf4 Rxc3 45. Nxc3 exf4) 44. Ng5+ $18 {[%emt 0:00:01]} Kg7 {[%emt 0:00:00]} 45. Nxh3 gxh3+ {[%emt 0:00:01]} 46. Kh2 {[%emt 0:00:08]} Ne7 $2 {[%emt 0:00:03]} (46... Bg4 47. Re3 Rd6) 47. Bxh5 {[%emt 0:00:03]} Nf5 {[%emt 0:00:01]} 48. Bg4 {[%emt 0:00:09]} Rd4 {[%emt 0:00:00]} 49. Bxf5 Bxf5 {[%emt 0:00:01][%mdl 4096] Endgame KRR-KRB} 50. Rf2 {[%emt 0:00:07] Prevents e4.} Kg6 {[%emt 0:00:02]} (50... Bg4 51. c5 Kg6 52. cxb6 cxb6 53. Rc6+ Kh5) 51. Rcf3 {[%emt 0:00:02]} Bg4 {[%emt 0:00:03]} 52. Rf6+ {[%emt 0:00:03]} Kg7 {[%emt 0:00:01]} 53. Rc6 {[%emt 0:00:02]} (53. Rf7+ $142 Kg8 54. Rxc7) 53... Rd7 {[%emt 0:00:03]} 54. c5 {[%emt 0:00:03][%cal Bc4c5,Bc5b6][%mdl 32] Strongly threatening cxb6.} e4 {[%emt 0:00:02]} 55. cxb6 {[%emt 0:00:33][%mdl 32768] Both players deserved the win here.   Weighted Error Value: White=0.41/Black=0.50. Loss on time!?} 0-1

[Event "Romanian Rapid Open 2022"]
[Site "Sebes"]
[Date "2022.12.02"]
[Round "6.25"]
[White "Sandru, Nicolae"]
[Black "Oltean, Cristian-Daniel"]
[Result "0-1"]
[ECO "A40"]
[WhiteElo "1647"]
[BlackElo "1896"]
[Annotator "NA RC COMBH"]
[PlyCount "88"]
[EventDate "2022.12.02"]
[EventType "rapid"]
[EventCountry "ROU"]
[SourceTitle "playchess.com"]
[Source "ChessBase"]
[SourceQuality "1"]
[TimeControl "600+5"]

1. d4 {[%emt 0:00:02]} g6 {[%emt 0:00:02]} 2. Bf4 {[%emt 0:00:03]} Bg7 {[%emt 0:00:02]} 3. e3 {[%emt 0:00:06]} f5 {[%emt 0:00:05]} 4. h3 {[%emt 0:00:03]} Nf6 {[%emt 0:00:02]} 5. Nd2 {[%emt 0:10:16]} d6 {[%emt 0:10:19]} 6. Bc4 {[%emt 0:00:00]} e6 {[%emt 0:00:00]} 7. Ngf3 {[%emt 0:00:00]} O-O {[%emt 0:00:00]} 8. a3 {[%emt 0:00:00]} Kh8 {[%emt 0:00:00]} 9. O-O {[%emt 0:00:00]} Qe8 {[%emt 0:00:00]} 10. Bh2 {[%emt 0:00:00]} Ne4 {[%emt 0:00:00]} 11. c3 {[%emt 0:00:00]} Nd7 {[%emt 0:00:00]} 12. Bb3 {[%emt 0:00:00]} Nxd2 {[%emt 0:00:00]} 13. Qxd2 {[%emt 0:00:00]} e5 {[%emt 0:00:00]} 14. Ng5 {[%emt 0:00:00]} Nb6 {[%emt 0:00:00]} 15. Nf3 {[%emt 0:00:00]} e4 {[%emt 0:00:00]} 16. Ne1 {[%emt 0:00:00]} Be6 {[%emt 0:00:00]} 17. d5 {[%emt 0:00:00]} Bd7 {[%emt 0:00:00]} 18. Nc2 {[%emt 0:00:00]} Bb5 {[%emt 0:00:00]} 19. Rfe1 {[%emt 0:00:00]} Bc4 {[%emt 0:00:00]} 20. Nd4 {[%emt 0:00:00]} Bxb3 {[%emt 0:00:00]} 21. Nxb3 {[%emt 0:00:00]} Qb5 {[%emt 0:00:00]} 22. Qc2 {[%emt 0:00:00]} Qxd5 {[%emt 0:00:00]} 23. Rad1 {[%emt 0:00:00]} Qf7 {[%emt 0:00:00]} 24. Nd4 {[%emt 0:00:00]} Be5 {[%emt 0:00:00]} 25. b3 {[%emt 0:00:00]} a6 {[%emt 0:00:00]} 26. c4 {[%emt 0:00:00]} Nd7 {[%emt 0:00:00]} 27. b4 {[%emt 0:00:00]} Bxh2+ {[%emt 0:00:00]} 28. Kxh2 {[%emt 0:00:00]} Ne5 {[%emt 0:00:00]} 29. c5 {[%emt 0:00:00]} Nd3 {[%emt 0:00:00]} 30. Re2 {[%emt 0:00:00]} d5 {[%emt 0:00:00]} 31. Rxd3 {[%emt 0:00:00]} exd3 {[%emt 0:00:00]} 32. Qxd3 {[%emt 0:00:00]} Rae8 {[%emt 0:00:00]} 33. Qc3 {[%emt 0:00:00]} Qf6 {[%emt 0:00:00]} 34. a4 {[%emt 0:00:00]} f4 {[%emt 0:00:00]} 35. Rc2 {[%emt 0:00:00]} fxe3 {[%emt 0:00:00]} 36. fxe3 {[%emt 0:00:00]} Qe5+ {[%emt 0:00:00]} 37. g3 {[%emt 0:00:00]} Qxe3 {[%emt 0:00:00]} 38. Qb2 {[%emt 0:00:00]} Qe5 {[%emt 0:00:00]} 39. Re2 {[%emt 0:00:00]} Qf6 {[%emt 0:00:00]} 40. Rd2 {[%emt 0:00:00]} h6 {[%emt 0:00:00]} 41. b5 {[%emt 0:00:00]} axb5 {[%emt 0:00:00]} 42. Qxb5 {[%emt 0:00:05]} Re1 {[%emt 0:00:00]} 43. Qb2 {[%emt 0:00:23]} Kh7 {[%emt 0:00:00]} 44. Qxb7 {[%emt 0:00:21]} Qf2+ {[%emt 0:00:00]} 0-1

[Event "Romanian Rapid Open 2022"]
[Site "Sebes"]
[Date "2022.12.02"]
[Round "6.26"]
[White "Dan, Cantemir-Dorian"]
[Black "Saioc, David"]
[Result "1-0"]
[ECO "A50"]
[WhiteElo "2036"]
[BlackElo "2026"]
[Annotator "TA"]
[PlyCount "51"]
[EventDate "2022.12.02"]
[EventType "rapid"]
[EventCountry "ROU"]
[SourceTitle "playchess.com"]
[Source "ChessBase"]
[SourceQuality "1"]
[TimeControl "600+5"]

{[%evp 12,51,12,0,12,0,20,30,22,21,24,19,139,139,140,142,132,107,104,96,128,115,157,141,150,87,134,135,183,170,187,187,187,181,185,179,459,451,818,814,797,789]} 1. c4 {[%emt 0:00:03]} b6 {[%emt 0:00:05]} 2. Nc3 {[%emt 0:00:05]} Bb7 {[%emt 0:00:01]} 3. d4 {[%emt 0:00:36]} Nf6 {[%emt 0:00:02]} 4. f3 {[%emt 0:00:49]} d5 {[%emt 0:00:05]} 5. cxd5 {[%emt 0:00:31]} Nxd5 {[%emt 0:00:01]} 6. e4 {[%emt 0:00:02]} Nxc3 {[%emt 0:00:02]} 7. bxc3 {[%emt 0:00:02]} e5 {[%emt 0:00:01] A50: Queen's Fianchetto Defence (1 d4 Nf6 2 c4 b6).} 8. dxe5 {[%emt 0:00:19]} Qe7 {[%emt 0:00:04] [#]} 9. Bb5+ $146 {[%emt 0:01:21]} ({Predecessor:} 9. Bf4 Nd7 10. Qb3 O-O-O 11. O-O-O g5 12. Be3 Bg7 13. Nh3 Nc5 14. Rxd8+ Rxd8 15. Qc4 {½-½ (46) Akshat,K (2364)-Saduakassova,D (2460) Sitges 2017}) 9... c6 {[%emt 0:00:28] White has an edge.} 10. Bc4 {[%emt 0:00:17] next f4 is good for White.} Qxe5 {[%emt 0:00:09]} 11. Ne2 {[%emt 0:00:23]} Nd7 {[%emt 0:00:47] [#]} (11... Bc5 $11 {keeps the balance.}) 12. Bxf7+ $1 $16 {[%emt 0:00:17][%mdl 512]} Kxf7 {[%emt 0:01:01]} 13. Qxd7+ {[%emt 0:00:02]} Qe7 {[%emt 0:00:01]} 14. Qf5+ {[%emt 0:00:39]} Qf6 {[%emt 0:00:12]} 15. Qxf6+ {[%emt 0:00:20]} Kxf6 {[%emt 0:00:01]} 16. Be3 {[%emt 0:00:04]} Rd8 {[%emt 0:00:12]} 17. Kf2 {[%emt 0:00:24]} Ba3 {[%emt 0:01:27]} 18. Rab1 {[%emt 0:00:18]} (18. Rhb1 $142) 18... Ba6 {[%emt 0:04:03]} (18... Rd7 $142) 19. Nd4 {[%emt 0:00:43][%cal Be2d4,Bd4c6,Bc6d8][%mdl 32]} Bc5 {[%emt 0:00:07]} (19... Bb7 $16 20. h4 Kf7) 20. Rhd1 $18 {[%emt 0:00:58]} (20. Nxc6 $2 {loses.} Rd2+ 21. Kg3 Bxe3 22. e5+ Kf5 $19) 20... Bc4 {[%emt 0:02:37]} 21. Nxc6 {[%emt 0:00:23]} Rxd1 {[%emt 0:00:03]} 22. Rxd1 {[%emt 0:00:04] [#] aiming for Bxc5.} Rc8 {[%emt 0:00:01]} 23. Bxc5 {[%emt 0:00:55]} ({Stronger than} 23. Nxa7 Rc7 $15) 23... bxc5 $2 {[%emt 0:00:02]} (23... Rxc6 24. Bd4+ Kf7) 24. Rd6+ {[%emt 0:00:18] White is clearly winning.} ({Worse is} 24. Nxa7 Rc7 $15) 24... Be6 {[%emt 0:00:25]} (24... Kg5 $142 25. Nxa7 Ra8) 25. e5+ {[%emt 0:00:40]} Kf7 {[%emt 0:00:07]} 26. Nd8+ {[%emt 0:00:07] Weighted Error Value: White=0.09 (flawless) /Black=0.52} 1-0